Cogmind - Beta 17.1 @@@ ROGUE MODE // 2026.08.27 @ 14:32:52 Player: SunShine214 Result: Destroyed by AP7-3 with Heavy Quantum Rifle Performance ------------- Evolutions (8) 4000 Regions Visited (20) 4000 Robots Destroyed (127) 635 Value Destroyed (3719) 3719 Prototype IDs (44) 880 Alien Tech Used (0) 0 Bonus (1800) 1800 TOTAL SCORE: 15034 Bonus ------- Registered with UFD 300 Met Optimus in HQ 500 Met Warlord at Base 500 MAIN.C Attacked Warlord 500 Cogmind --------- Core Integrity 0/1450 Matter 5/300 Energy 100/100 System Corruption 4% Temperature Cool (10) Movement Flying (30) Location -2/Protoforge Parts ------- > --- POWER (2) -------- (None) > --- PROPULSION (7) --- Diametric Drive > --- UTILITY (10) ----- Spectral Analyzer Hacking Suite > --- WEAPON (4) ------- Backup Laser VII > --- INVENTORY (5) ---- Light Quantum Reactor Xenon Bombardment Thruster Xenon Bombardment Thruster Xenon Bombardment Thruster Peak State ------------ > --- POWER ------------ Vortex Chain Reactor > --- PROPULSION ------- Cesium-ion Thruster Cooled VTOL Module Field Propulsion Array Electron Diverter Electron Diverter > --- UTILITY ---------- Spectral Analyzer Advanced Cloaking Device Hacking Suite Hacking Suite Hacking Suite Advanced Hacking Suite Experimental Hacking Suite Advanced System Shield > --- WEAPON ----------- Vortex Shotgun > --- INVENTORY -------- Armored Medium Treads Experimental Heat Sink Large Storage Unit Vortex Shotgun Improved Plasma Cutter [Rating: 118] Favorites ----------- Power Light Nuclear Core Engine Ion Engine Power Core Light Nuclear Core Reactor Light Quantum Reactor Propulsion Light Treads Treads Light Treads Leg Aluminum Leg Wheel Armored Huge Wheel Hover Unit Antigrav Array Flight Unit Cooled VTOL Module Utility Hacking Suite Device Improved Heat Sink Storage Medium Storage Unit Processor Spectral Analyzer Hackware Hacking Suite Protection Hardened Medium Armor Plating Weapon Advanced Beam Cannon Energy Gun Small Laser Energy Cannon Advanced Beam Cannon Ballistic Gun Assault Rifle Ballistic Cannon Compact Mass Driver Launcher Rocket Launcher Special Weapon Remote Datajack Impact Weapon Hammer Slashing Weapon Power Sword Build | -11 -10 -9 -8 -7 -7 -7 -7 -5 -4 -4 -4 -4 -4 -4 -3 -3 -3 -2 -2 -2 ------- Run | Yrd Mat Mat Mat Fac Sto Rec Scr Fac Fac Was Fac Upp Upp War Pro Res Tes Res Qua Frg Slots Evolved 16 | . . 2 2 2 . . . 4 2 . . . . . . 2 . 2 . . Power 1 | . . . . . . . . 1 . . . . . . . . . . . . Propulsion 5 | . . . 2 . . . . 2 1 . . . . . . . . . . . Utility 8 | . . 2 . 2 . . . 1 1 . . . . . . 1 . 1 . . Weapon 2 | . . . . . . . . . . . . . . . . 1 . 1 . . Parts Attached 148 | 7 6 11 12 24 12 1 2 15 5 1 9 . . 14 . 8 4 14 . 3 Power 22 | 1 1 1 1 4 1 . 2 2 1 . . . . 3 . . 1 3 . 1 Engine 6 | 1 . . . 1 1 . 1 1 . . . . . 1 . . . . . . Core 11 | . 1 1 1 3 . . 1 1 1 . . . . 1 . . . . . 1 Reactor 5 | . . . . . . . . . . . . . . 1 . . 1 3 . . Propulsion 53 | 2 . 3 5 8 6 . . 4 3 1 3 . . 3 . 6 2 6 . 1 Treads 18 | 2 . 3 5 3 . . . 1 . . 2 . . . . . 1 . . 1 Leg 1 | . . . . 1 . . . . . . . . . . . . . . . . Wheel 3 | . . . . . . . . 1 . . . . . . . . . 2 . . Hover 4 | . . . . . . . . 1 . . . . . . . 3 . . . . Flight 27 | . . . . 4 6 . . 1 3 1 1 . . 3 . 3 1 4 . . Utility 36 | 2 2 2 3 7 2 . . 6 1 . 4 . . 4 . 1 . 2 . . Device 11 | 1 1 . . . 1 . . 3 . . 1 . . 2 . . . 2 . . Storage 4 | 1 1 1 . . . . . 1 . . . . . . . . . . . . Processor 5 | . . 1 . . 1 . . 1 . . . . . 2 . . . . . . Hackware 10 | . . . 2 2 . . . 1 1 . 3 . . . . 1 . . . . Protection 6 | . . . 1 5 . . . . . . . . . . . . . . . . Artifact . | . . . . . . . . . . . . . . . . . . . . . Weapon 37 | 2 3 5 3 5 3 1 . 3 . . 2 . . 4 . 1 1 3 . 1 Energy Gun 9 | 1 1 . 2 . 1 . . 1 . . . . . 2 . . . . . 1 Energy Cannon 6 | . 1 2 . 1 . . . . . . . . . . . . 1 1 . . Ballistic Gun 7 | 1 1 2 1 1 1 . . . . . . . . . . . . . . . Ballistic Cannon 5 | . . . . 1 . . . . . . 1 . . 1 . . . 2 . . Launcher 2 | . . 1 . 1 . . . . . . . . . . . . . . . . Special Weapon 2 | . . . . . . . . . . . 1 . . 1 . . . . . . Impact Weapon 3 | . . . . 1 1 . . . . . . . . . . 1 . . . . Slashing Weapon 3 | . . . . . . 1 . 2 . . . . . . . . . . . . Piercing Weapon . | . . . . . . . . . . . . . . . . . . . . . Special Melee Weapon . | . . . . . . . . . . . . . . . . . . . . . Unidentified Prototypes 27 | . . 2 3 . 4 . . 3 . 1 1 . . 7 . 2 2 2 . . Corrupted Parts 1 | . . . . . . . . . . . . . . 1 . . . . . . System Corruption 12 | . . . . . . . . . . . . . . 12 . . . . . . Parts Lost 71 | . 1 . 5 13 4 . . 4 2 . 11 1 . 3 1 10 . 12 3 1 Power 8 | . . . 1 2 1 . . . . . 1 . . . . 2 . 1 . . Propulsion 38 | . . . 3 7 3 . . 3 2 . 5 . . 3 . 4 . 7 1 . Utility 17 | . 1 . 1 3 . . . 1 . . 2 1 . . 1 3 . 1 2 1 Weapon 8 | . . . . 1 . . . . . . 3 . . . . 1 . 3 . . Highest Loss Streak 9 | . 1 . 3 7 3 . . 2 1 . 9 1 . 3 4 5 . 8 3 1 To Critical Strikes . | . . . . . . . . . . . . . . . . . . . . . Average Backups 8 | . 6 10 14 13 9 9 10 9 9 10 8 5 5 4 5 4 4 2 4 3 Power . | . 1 1 1 1 . . 1 . . . . . . . 1 . . . 1 . Propulsion 1 | . . 2 1 2 3 1 1 . 3 3 2 1 1 . . . . . 1 2 Utility 2 | . 2 2 4 3 2 3 3 3 4 5 4 3 3 2 2 2 1 1 . . Weapon 3 | . 2 5 6 6 2 4 3 3 2 1 . . . . 2 2 2 1 2 . Tool/Special . | . . . . . . . . . . . . . . . . . . . . . Unused Backups 39 | . 2 7 7 7 2 . 1 5 3 1 1 . . . . . . . . 3 Power . | . . . . . . . . . . . . . . . . . . . . . Propulsion 11 | . 1 1 3 . 1 . . . 1 1 . . . . . . . . . 3 Utility 12 | . 1 1 2 2 1 . 1 2 1 . 1 . . . . . . . . . Weapon 15 | . . 5 2 5 . . . 2 1 . . . . . . . . . . . Tool/Special 1 | . . . . . . . . 1 . . . . . . . . . . . . Average Slot Usage (%) 79 | . 100 90 92 93 97 92 92 77 78 78 65 51 47 69 53 41 39 43 25 37 Engine 1 | . 5 . . 1 . . . . . . . . . 2 . . . . . . Core 5 | . 8 10 9 5 7 7 7 6 5 5 . . . 4 5 . . . . 3 Treads 13 | . 28 21 28 25 . . . . . . 1 . . . . . . 2 . 3 Flight 8 | . . . . 1 29 30 30 21 20 26 17 10 10 16 10 12 3 5 4 3 Device 5 | . 14 11 6 . 6 7 7 2 . . 1 4 . 3 5 . 3 2 . . Storage 8 | . 14 14 18 9 7 7 7 5 5 5 3 . . . . . . . . . Processor 5 | . . 10 8 . 6 7 7 10 10 10 8 5 5 5 5 4 4 4 4 4 Hackware 14 | . . . . 19 23 23 23 17 26 26 27 31 31 31 27 20 19 17 13 8 Protection 2 | . . . 2 13 . . . . . . . . . . . . . . . . Energy Gun 1 | . 6 . . . 5 5 . . . . . . . 4 . . . 2 . 3 Energy Cannon 5 | . 7 12 18 10 . . . . . . . . . . . . 1 . . 3 Ballistic Gun 2 | . 14 7 . . 1 . . . . . . . . . . . . . . . Slashing Weapon 1 | . . . . . . 1 7 4 5 5 3 . . . . . . . . . Peak Build Rating 118 | 7 12 20 24 42 47 48 44 73 77 75 70 66 59 118 74 75 90 98 37 83 Average Rating 41 | 5 9 16 21 30 44 44 44 62 71 66 62 65 59 89 67 55 72 63 33 72 On Entrance 47 | . 7 12 20 24 42 44 44 44 73 65 66 66 59 59 74 66 75 90 36 27 Avg Prop Armor Cover (%) 14 | . . . . 10 . . . 23 14 . 14 . . 5 . 11 15 12 17 2 Naked Turns . | . . . . . . . . . . . . . . . . . . . . . Heaviest Build 57 | 14 21 44 46 57 23 21 20 26 18 18 19 3 . 43 6 6 14 50 . 42 Greatest Support 80 | 40 40 40 80 80 25 22 22 29 28 25 30 20 20 41 16 52 52 35 7 80 Greatest Overweight (x) 11 | . . 5 1 11 . . . 1 1 . . . . 1 . . . 7 . . Average Overweight (x) . | . . . . . . . . . . . . . . . . . . . . . Largest Inventory Capacity 15 | 8 10 15 15 15 10 10 10 10 10 10 10 5 5 5 5 5 5 5 5 5 Average Capacity 9 | 6 9 11 15 14 10 10 10 10 10 10 8 5 5 5 5 5 5 5 5 5 Most Carried 15 | 1 10 13 15 15 10 10 10 10 10 10 10 5 5 5 5 5 5 5 5 5 Average Carried 8 | . 7 10 14 13 9 9 10 9 9 9 8 5 5 4 5 4 4 2 4 3 Final Capacity 15 | 8 10 15 15 10 10 10 10 10 10 10 5 5 5 5 5 5 5 5 5 5 Final Carried 14 | 1 10 13 14 10 8 10 10 10 10 10 5 5 5 5 5 5 4 5 5 4 Class Distribution -------------------- 24% | Hacker-Mutant 19% | Mutant 19% | Scavenger-Mutant 17% | Hacker-Sprinter 7% | Wizard-Mutant 4% | Hacker-Scout 3% | Wizard-Sprinter 3% | Hacker-Tank Dominant Class ---------------- Mutant | -10/Materials Scavenger-Mutant | -9/Materials Scavenger-Mutant | -8/Materials Hacker-Mutant | -7/Factory Hacker-Sprinter | -7/Storage Hacker-Sprinter | -7/Recycling Hacker-Sprinter | -7/Scraptown Hacker-Scout | -5/Factory Hacker-Mutant | -4/Factory Hacker-Mutant | -4/Waste Hacker-Sprinter | -4/Factory Wizard-Mutant | -4/Upper Caves Wizard-Mutant | -4/Upper Caves Wizard-Sprinter | -4/Warlord Hacker-Sprinter | -3/Proximity Caves Hacker-Sprinter | -3/Research Hacker-Mutant | -3/Testing Hacker-Mutant | -2/Research Hacker-Mutant | -2/Quarantine Hacker-Tank | -2/Protoforge Resources | -11 -10 -9 -8 -7 -7 -7 -7 -5 -4 -4 -4 -4 -4 -4 -3 -3 -3 -2 -2 -2 ----------- Run | Yrd Mat Mat Mat Fac Sto Rec Scr Fac Fac Was Fac Upp Upp War Pro Res Tes Res Qua Frg Matter Collected 2399 | 266 276 271 163 404 197 50 63 141 104 . . . 13 319 . . . 101 . 31 Remotely . | . . . . . . . . . . . . . . . . . . . . . Salvage Created 4571 | 12 973 728 935 757 126 . . 394 98 . 36 . . . . 50 . 335 . 127 Parts 247 | 6 51 47 41 44 6 . . 16 8 . . . . . . . . 20 . 8 Haulers Intercepted 7 | . 1 3 3 . . . . . . . . . . . . . . . . . Recyclers Shooed 5 | . 3 . . . . . . . 1 . . . . . . . . 1 . . Parts Field Recycled . | . . . . . . . . . . . . . . . . . . . . . Retrieved Matter . | . . . . . . . . . . . . . . . . . . . . . Parts Self-Destructed . | . . . . . . . . . . . . . . . . . . . . . Prevented . | . . . . . . . . . . . . . . . . . . . . . Parts Restored . | . . . . . . . . . . . . . . . . . . . . . Kills | -11 -10 -9 -8 -7 -7 -7 -7 -5 -4 -4 -4 -4 -4 -4 -3 -3 -3 -2 -2 -2 ------- Run | Yrd Mat Mat Mat Fac Sto Rec Scr Fac Fac Was Fac Upp Upp War Pro Res Tes Res Qua Frg Combat Hostiles Destroyed 76 | . 16 14 9 16 1 . . 4 3 . 1 . . . . 1 . 8 . 3 Melee 9 | . . . . 1 . . . 4 3 . . . . . . 1 . . . . Guns 20 | . 11 4 . . 1 . . . . . . . . . . . . 4 . . Cannons 33 | . 5 5 8 7 . . . . . . 1 . . . . . . 4 . 3 AOE 11 | . . 4 . 7 . . . . . . . . . . . . . . . . Classes Destroyed 14 | 1 6 2 3 1 . . . . 1 . . . . . . . . . . . Worker 8 | . . . 4 2 . . . . . . . . . . . . . 2 . . Builder 10 | . 2 1 . 5 . . . . . . . . . . . . . 2 . . Tunneler 2 | 1 . 1 . . . . . . . . . . . . . . . . . . Hauler 7 | . 1 3 3 . . . . . . . . . . . . . . . . . Recycler 10 | . 2 1 2 2 . . . 2 . . . . . . . . . 1 . . Mechanic 1 | . . . . . . . . . 1 . . . . . . . . . . . Operator 8 | . 2 . 2 1 2 . . . . . . . . . . . . . . 1 Watcher 5 | . 2 1 1 . 1 . . . . . . . . . . . . . . . Swarmer 23 | . . 4 . 4 . . . 4 3 . . . . . . . . 5 . 3 Grunt 35 | . 16 7 6 5 . . . . . . . . . . . . . 1 . . Brawler 1 | . . . 1 . . . . . . . . . . . . . . . . . Sentry 6 | . . 3 . 2 1 . . . . . . . . . . . . . . . Hunter 3 | . . . 2 1 . . . . . . . . . . . . . . . . Programmer 8 | . . . . 4 . . . . . . 1 . . . . 1 . 2 . . Best Kill Streak 11 | 1 3 9 7 11 2 . . 6 3 . 1 . . . . 1 . 8 . 3 Combat Bots Only 7 | . 3 6 3 7 1 . . 4 3 . 1 . . . . 1 . 6 . 3 Max Kills in Single Turn 3 | 1 1 3 1 3 1 . . 1 1 . 1 . . . . 1 . 2 . 1 Gunslinging . | . . . . . . . . . . . . . . . . . . . . . Exploded 3 | . . 3 . 2 . . . . . . . . . . . . . . . . Melee 1 | . . . . 1 . . . 1 1 . . . . . . 1 . . . . Uniques/NPCs Destroyed . | . . . . . . . . . . . . . . . . . . . . . Combat | -11 -10 -9 -8 -7 -7 -7 -7 -5 -4 -4 -4 -4 -4 -4 -3 -3 -3 -2 -2 -2 -------- Run | Yrd Mat Mat Mat Fac Sto Rec Scr Fac Fac Was Fac Upp Upp War Pro Res Tes Res Qua Frg Hostile Shots Fired 1148 | . 51 40 76 198 78 . . 73 38 . 147 18 2 20 9 76 81 162 23 56 Missed 453 | . 11 14 18 55 39 . . 25 15 . 72 10 2 14 3 27 51 64 14 19 Hits 695 | . 40 26 58 143 39 . . 48 23 . 75 8 . 6 6 49 30 98 9 37 Projectile 695 | . 40 26 58 143 39 . . 48 23 . 75 8 . 6 6 49 30 98 9 37 AOE 2 | . . . . . . . . . . . 2 . . . . . . . . . Critical Strikes 19 | . 1 . 5 5 1 . . . . . 4 . . . . 1 . 2 . . Part Disruptions 2 | . . . . 2 . . . . . . . . . . . . . . . . Damage Taken 12702 | . 617 370 894 1902 439 . . 785 397 . 1574 134 . 208 121 1206 494 2397 177 987 Core 3433 | . 49 65 133 204 115 . . 134 59 . 459 19 . 26 56 450 201 954 109 400 Absorbed by Shields . | . . . . . . . . . . . . . . . . . . . . . Regen/Repaired (Parts) 114 | . . . . . . . . . 51 . . . . 63 . . . . . . Core Remaining (%) 71 | 100 80 83 75 . . . 54 86 . . . . . . 46 . 49 . . . Volleys Fired 277 | 1 72 36 61 52 15 . . . . . 5 . . . . . 1 23 . 11 Largest 3 | 2 2 2 2 2 2 . . . . . 1 . . . . . 1 3 . 3 Hottest 224 | 60 80 136 136 148 56 . . . . . 47 . . . . . 100 178 . 224 Shots Fired 490 | 2 139 69 122 84 17 . . . . . 5 . . . . . 1 30 . 21 Gun 168 | 2 101 25 . . 17 . . . . . . . . . . . . 18 . 5 Cannon 305 | . 38 42 122 69 . . . . . . 5 . . . . . 1 12 . 16 Launcher 17 | . . 2 . 15 . . . . . . . . . . . . . . . . Special . | . . . . . . . . . . . . . . . . . . . . . Kinetic 125 | 1 72 25 . 3 3 . . . . . 5 . . . . . . 11 . 5 Thermal 328 | 1 67 42 122 66 14 . . . . . . . . . . . . . . 16 Explosive 17 | . . 2 . 15 . . . . . . . . . . . . . . . . Electromagnetic 2 | . . . . . . . . . . . . . . . . . 1 1 . . Entropic 18 | . . . . . . . . . . . . . . . . . . 18 . . Robot Hit Streak 13 | 1 11 13 7 10 5 . . . . . 5 . . . . . . 5 . 3 Robot Miss Streak 5 | . 2 3 5 4 2 . . . . . 1 . . . . . . 5 . 5 Penetration Max . | . . . . . . . . . . . . . . . . . . . . . Secondary Targets . | . . . . . . . . . . . . . . . . . . . . . Shots Hit Robots 350 | 1 97 45 71 56 15 . . 16 9 . 6 . . . . 5 . 21 . 8 Core Hits 180 | 2 45 26 26 35 5 . . 5 4 . 1 . . . . 1 . 25 . 5 Critical Kills 5 | . . 1 2 1 . . . . . . . . . . . 1 . . . . Critical Parts Destroyed 6 | . . . . 2 1 . . . . . . . . . . 1 . 2 . . Critical Strikes 18 | . . 1 2 3 1 . . 2 2 . 1 . . . . 2 . 4 . . Meltdown 3 | . . 1 2 . . . . . . . . . . . . . . . . . Blast 2 | . . . . . . . . . . . . . . . . . . 2 . . Smash 6 | . . . . 3 1 . . . . . . . . . . 2 . . . . Sever 5 | . . . . . . . . 2 2 . 1 . . . . . . . . . Detonate 2 | . . . . . . . . . . . . . . . . . . 2 . . Melee Attacks 98 | . . . . 18 11 2 . 41 15 . 3 . . . . 8 . . . . Impact 37 | . . . . 18 11 . . . . . . . . . . 8 . . . . Slashing 61 | . . . . . . 2 . 41 15 . 3 . . . . . . . . . Piercing . | . . . . . . . . . . . . . . . . . . . . . Sneak Attacks 7 | . . . . 3 . . . 2 2 . . . . . . . . . . . Combat Hostiles . | . . . . . . . . . . . . . . . . . . . . . Follow-up Attacks . | . . . . . . . . . . . . . . . . . . . . . Damage Inflicted 10767 | 31 1388 1144 1608 2555 357 . . 760 490 . 316 . . . . 306 . 1496 . 316 Guns 2098 | 12 850 296 . . 186 . . . . . . . . . . . . 734 . 20 Cannons 4474 | . 529 532 1585 1032 . . . . . . 125 . . . . . . 375 . 296 Explosions 1709 | . . 316 . 1006 . . . . . . . . . . . . . 387 . . Melee 2264 | . . . . 478 171 . . 760 432 . 117 . . . . 306 . . . . Ramming 222 | 19 9 . 23 39 . . . . 58 . 74 . . . . . . . . . Kinetic 1596 | 12 604 296 . 81 . . . . . . 125 . . . . . . 356 . 122 Thermal 4610 | . 775 532 1585 951 186 . . . . . . . . . . . . 387 . 194 Explosive 1322 | . . 316 . 1006 . . . . . . . . . . . . . . . . Electromagnetic 19 | . . . . . . . . . . . . . . . . . . 19 . . Impact 955 | . . . . 478 171 . . . . . . . . . . 306 . . . . Slashing 1309 | . . . . . . . . 760 432 . 117 . . . . . . . . . Piercing . | . . . . . . . . . . . . . . . . . . . . . Entropic 734 | . . . . . . . . . . . . . . . . . . 734 . . Highest Corruption 12 | . 1 . . 5 5 5 . 4 . . 9 9 9 12 12 6 9 4 4 4 Average Corruption 5 | . 1 . . 4 5 5 . 4 . . 6 9 9 11 12 5 8 3 4 4 Corruption Purged . | . . . . . . . . . . . . . . . . . . . . . Corruption Blocked . | . . . . . . . . . . . . . . . . . . . . . Effects 86 | . 2 . . 16 7 4 . 16 . . 8 3 3 4 4 3 6 2 1 7 Message Errors 28 | . . . . 3 2 2 . 4 . . 2 1 2 . 2 2 3 1 1 3 Matter Fused 18 | . 1 . . 2 1 2 . 4 . . 2 . 1 2 . . 1 . . 2 Heat Flow Errors 10 | . . . . 3 . . . 3 . . 1 . . . 1 . . 1 . 1 Energy Discharges 9 | . . . . 3 2 . . 1 . . 1 1 . . . . 1 . . . Parts Rejected 3 | . . . . 1 . . . . . . 1 . . . . . . . . 1 Parts Fused 1 | . . . . . . . . . . . . . . 1 . . . . . . Data Loss (minor) 8 | . . . . 2 1 . . 4 . . . . . . . 1 . . . . Data Loss (major) 4 | . 1 . . 1 . . . . . . 1 . . . . . 1 . . . Misfires 1 | . . . . . 1 . . . . . . . . . . . . . . . Alerts 1 | . . . . . . . . . . . . 1 . . . . . . . . Misdirections 2 | . . . . . . . . . . . . . . 1 1 . . . . . Weapon Failures 1 | . . . . 1 . . . . . . . . . . . . . . . . Overload Shots . | . . . . . . . . . . . . . . . . . . . . . Overflow Damage 737 | . . 19 12 281 45 . . 140 56 . . . . . . 122 . 62 . . Projectiles 74 | . . . 12 44 . . . . . . . . . . . . . 18 . . Explosions 126 | . . 19 . 63 . . . . . . . . . . . . . 44 . . Melee 537 | . . . . 174 45 . . 140 56 . . . . . . 122 . . . . Knockbacks 18 | . . . . 9 1 . . . 1 . 1 . . . . 3 . 3 . . Impact 11 | . . . . 6 1 . . . 1 . . . . . . 3 . . . . Kinetic 6 | . . . . 2 . . . . . . 1 . . . . . . 3 . . Secondary 1 | . . . . 1 . . . . . . . . . . . . . . . . Self-Inflicted Damage 245 | . . 32 . . . . . . 29 . 74 . . . . . . 110 . . Shots 3 | . . 1 . . . . . . . . . . . . . . . 2 . . Rammed 22 | 5 4 . 5 7 . . . . 1 . . . . . . . . . . . Targets Rammed 25 | 5 4 . 7 8 . . . . 1 . . . . . . . . . . . Kicked . | . . . . . . . . . . . . . . . . . . . . . Crushed 3 | . . . 2 1 . . . . . . . . . . . . . . . . Highest Temperature 525 | . 198 108 374 525 122 . . 272 . . 72 . . 15 170 456 19 265 . 230 Average Temperature 122 | . 45 34 114 173 46 . . 91 . . 40 . . 4 89 241 14 95 . 52 Received Heat Transfer 2198 | . 294 126 432 633 126 . . 45 9 . 54 . . 38 9 36 162 108 . 126 Effects 12 | . . . 4 8 . . . . . . . . . . . . . . . . Shutdowns 2 | . . . . 2 . . . . . . . . . . . . . . . . Energy Bleed 1 | . . . 1 . . . . . . . . . . . . . . . . . Interference 4 | . . . 3 1 . . . . . . . . . . . . . . . . Matter Decay 1 | . . . . 1 . . . . . . . . . . . . . . . . Short Circuit 3 | . . . . 3 . . . . . . . . . . . . . . . . Damage (minor) 1 | . . . . 1 . . . . . . . . . . . . . . . . Siege Activations . | . . . . . . . . . . . . . . . . . . . . . Martial Activations . | . . . . . . . . . . . . . . . . . . . . . Shielding Activations . | . . . . . . . . . . . . . . . . . . . . . Robots Disrupted . | . . . . . . . . . . . . . . . . . . . . . Combat Hostiles . | . . . . . . . . . . . . . . . . . . . . . Robots Corrupted 4 | . . . . 3 1 . . . . . . . . . . . . . . . Combat Hostiles 1 | . . . . 1 . . . . . . . . . . . . . . . . Parts Fried 4 | . . . . 1 3 . . . . . . . . . . . . . . . Impact Corruptions 15 | . . . . 7 2 . . . . . . . . . . 6 . . . . Robots Melted 3 | . . 1 2 . . . . . . . . . . . . . . . . . Combat Hostiles 2 | . . 1 1 . . . . . . . . . . . . . . . . . Parts Melted 16 | . 3 4 5 4 . . . . . . . . . . . . . . . . Heat Transferred 8114 | . 1660 1036 2849 1614 370 . . . . . . . . . . . . 400 . 185 Parts Sabotaged . | . . . . . . . . . . . . . . . . . . . . . Parts Stolen . | . . . . . . . . . . . . . . . . . . . . . Parts Stripped . | . . . . . . . . . . . . . . . . . . . . . Power Chain Reactions . | . . . . . . . . . . . . . . . . . . . . . Alert | -11 -10 -9 -8 -7 -7 -7 -7 -5 -4 -4 -4 -4 -4 -4 -3 -3 -3 -2 -2 -2 ------- Run | Yrd Mat Mat Mat Fac Sto Rec Scr Fac Fac Was Fac Upp Upp War Pro Res Tes Res Qua Frg Maximum Alert Level 1 | . . 1 . 1 . . . . . . . . . . . . . 1 . . Low Security (%) 93 | 100 100 85 100 80 100 100 . 100 100 100 100 . . . . 100 100 52 100 100 Level 1 6 | . . 14 . 19 . . . . . . . . . . . . . 47 . . Level 2 . | . . . . . . . . . . . . . . . . . . . . . Level 3 . | . . . . . . . . . . . . . . . . . . . . . Level 4 . | . . . . . . . . . . . . . . . . . . . . . Level 5 . | . . . . . . . . . . . . . . . . . . . . . High Security . | . . . . . . . . . . . . . . . . . . . . . Max Security . | . . . . . . . . . . . . . . . . . . . . . Peak Influence 296 | . 140 220 136 241 121 35 . 131 135 45 55 . . . . 55 95 296 176 171 Initial 146 | . . 45 84 32 69 35 . . 51 45 24 . . . . . 8 42 146 93 Average 76 | . 66 90 63 111 93 15 . 49 99 41 8 . . . . 18 27 166 142 102 Influence Increases 3780 | 5 497 428 366 526 162 2 . 377 209 . 135 45 30 . 15 146 105 458 100 174 Destroy 0b10 Robot/C 1520 | . 320 280 180 320 20 . . 80 60 . 20 . . . . 20 . 160 . 60 Destroy 0b10 Robot/NC 255 | 5 45 35 60 50 15 . . 10 5 . . . . . . . . 25 . 5 Destroy Leader 364 | . 86 78 48 90 12 . . 10 10 . . . . . . . . 20 . 10 Successful Hack 103 | . . . . . 10 . . 20 23 . . . . . . 36 . 4 10 . Disable Machine 150 | . . . 60 . 45 . . 15 . . . . . . . 15 . . . 15 Destroy Structure 188 | . 1 20 3 51 . 2 . 32 6 . 10 . . . . . . 39 . 24 Partial Spotted 180 | . . . . . 30 . . 30 45 . . . . . . 30 . 15 15 15 Lose Combat Pursuer 1020 | . 45 15 15 15 30 . . 180 60 . 105 45 30 . 15 45 105 195 75 45 Influence Decreases 3693 | 5 389 336 494 444 225 93 . 272 184 95 125 65 35 20 15 131 45 273 194 253 Entered New Map 781 | . . 63 116 40 85 56 . . 54 85 11 18 6 20 . . 7 33 114 73 Time Decay 2378 | 5 379 273 338 274 100 37 . 232 110 10 76 37 29 . 15 85 38 120 50 170 Lost Part 524 | . 10 . 40 130 40 . . 30 20 . 38 10 . . . 46 . 120 30 10 Lost Ally 10 | . . . . . . . . 10 . . . . . . . . . . . . Squads Dispatched 42 | . 5 . 1 9 2 . . 9 3 . 4 . . . . . 1 3 2 3 Investigation 15 | . 2 . . 1 1 . . 7 1 . 2 . . . . . 1 . . . Extermination 7 | . . . . 3 . . . 2 . . 1 . . . . . . 1 . . Reinforcement 18 | . 3 . 1 5 1 . . . . . 1 . . . . . . 2 2 3 Assault 2 | . . . . . . . . . 2 . . . . . . . . . . . Garrison . | . . . . . . . . . . . . . . . . . . . . . Intercept . | . . . . . . . . . . . . . . . . . . . . . Searches Triggered . | . . . . . . . . . . . . . . . . . . . . . Construction Impeded 2 | . . . . 2 . . . . . . . . . . . . . . . . Haulers Reinforced 1 | . . . . 1 . . . . . . . . . . . . . . . . Active Scanning Responses . | . . . . . . . . . . . . . . . . . . . . . Cargo Convoy Interrupts . | . . . . . . . . . . . . . . . . . . . . . Stealth | -11 -10 -9 -8 -7 -7 -7 -7 -5 -4 -4 -4 -4 -4 -4 -3 -3 -3 -2 -2 -2 --------- Run | Yrd Mat Mat Mat Fac Sto Rec Scr Fac Fac Was Fac Upp Upp War Pro Res Tes Res Qua Frg Distress Signals 15 | . 1 2 2 1 . . . . . . 3 . . 1 1 1 . 3 . . Communications Jammed . | . . . . . . . . . . . . . . . . . . . . . Distress Signals . | . . . . . . . . . . . . . . . . . . . . . Times Spotted 321 | . 26 20 25 21 10 . . 27 11 4 19 8 4 41 6 18 13 36 11 21 Peak Tracking Total 17 | . 6 5 7 5 7 . . 8 5 4 10 5 5 17 5 11 10 15 10 13 Tactical Retreats 37 | . 3 1 1 1 1 . . 8 4 . 3 1 2 . 1 2 2 4 2 1 Traps | -11 -10 -9 -8 -7 -7 -7 -7 -5 -4 -4 -4 -4 -4 -4 -3 -3 -3 -2 -2 -2 ------- Run | Yrd Mat Mat Mat Fac Sto Rec Scr Fac Fac Was Fac Upp Upp War Pro Res Tes Res Qua Frg Traps Triggered 11 | . 2 1 . 1 1 . . 2 1 . 1 . . . . 1 . . 1 . Indirectly . | . . . . . . . . . . . . . . . . . . . . . Trap Hack Attempts . | . . . . . . . . . . . . . . . . . . . . . Triggered . | . . . . . . . . . . . . . . . . . . . . . Disarmed . | . . . . . . . . . . . . . . . . . . . . . Reprogrammed . | . . . . . . . . . . . . . . . . . . . . . Reused . | . . . . . . . . . . . . . . . . . . . . . Traps Extracted . | . . . . . . . . . . . . . . . . . . . . . Installed . | . . . . . . . . . . . . . . . . . . . . . Triggered . | . . . . . . . . . . . . . . . . . . . . . Machines | -11 -10 -9 -8 -7 -7 -7 -7 -5 -4 -4 -4 -4 -4 -4 -3 -3 -3 -2 -2 -2 ---------- Run | Yrd Mat Mat Mat Fac Sto Rec Scr Fac Fac Was Fac Upp Upp War Pro Res Tes Res Qua Frg Machines Disabled 11 | . . . 4 . 3 . . 1 . . . . . 1 . 1 . . . 1 Max in Single Turn 1 | . . . 1 . 1 . . 1 . . . . . 1 . 1 . . . 1 Garrison Access 6 | . . . . 1 1 . . 2 1 . 1 . . . . . . . . . Machines Repaired . | . . . . . . . . . . . . . . . . . . . . . Machines Dismantled 1 | . . . . . . . . . . . . . . 1 . . . . . . Machines Sabotaged . | . . . . . . . . . . . . . . . . . . . . . Overloaded Fab Kills . | . . . . . . . . . . . . . . . . . . . . . Hacking | -11 -10 -9 -8 -7 -7 -7 -7 -5 -4 -4 -4 -4 -4 -4 -3 -3 -3 -2 -2 -2 --------- Run | Yrd Mat Mat Mat Fac Sto Rec Scr Fac Fac Was Fac Upp Upp War Pro Res Tes Res Qua Frg Machines Accessed 62 | . 3 1 2 3 4 2 1 16 6 . 4 . . 6 1 2 3 2 5 1 Terminals 36 | . 3 1 2 2 3 . . 7 4 . 1 . . . 1 2 2 2 5 1 Fabricators 1 | . . . . . . . . 1 . . . . . . . . . . . . Repair Stations 1 | . . . . . . . . . 1 . . . . . . . . . . . Recycling Units 10 | . . . . . . 2 . 5 1 . 2 . . . . . . . . . Scanalyzers 2 | . . . . . . . . 1 . . . . . . . . 1 . . . Garrison Access 5 | . . . . 1 1 . . 2 . . 1 . . . . . . . . . Total Hacks 128 | . 6 1 3 4 7 3 6 36 16 . 8 . . 16 1 4 6 2 7 2 Successful 80 | . 1 1 1 3 3 2 6 20 8 . 6 . . 16 1 2 3 2 4 1 Failed 47 | . 5 . 2 1 4 1 . 15 8 . 2 . . . . 2 3 . 3 1 Catastrophic 10 | . . . 1 1 . . . 3 2 . . . . . . 1 1 . 1 . Database Lockouts 1 | . . . . . . . . 1 . . . . . . . . . . . . Manual 47 | . . 1 3 2 2 . . 24 8 . 3 . . 1 . . 1 1 1 . Terminals 76 | . 6 1 3 3 5 . . 24 11 . 3 . . . 1 4 4 2 7 2 Fabricators 2 | . . . . . . . . 2 . . . . . . . . . . . . Repair Stations 4 | . . . . . . . . . 4 . . . . . . . . . . . Recycling Units 11 | . . . . . . 3 . 5 1 . 2 . . . . . . . . . Scanalyzers 5 | . . . . . . . . 3 . . . . . . . . 2 . . . Garrison Access 8 | . . . . 1 2 . . 2 . . 3 . . . . . . . . . Terminal Hacks 56 | . 1 1 1 2 2 . 6 7 5 . 3 . . 16 1 2 2 2 4 1 Record 14 | . . . . . . . . . . . . . . 9 . 1 1 . 2 1 Part Schematic 2 | . . . . . 1 . . . 1 . . . . . . . . . . . Robot Analysis 6 | . . . . . . . 6 . . . . . . . . . . . . . Prototype ID Bank 6 | . . . . . . . . . . . . . . 6 . . . . . . Open Door 4 | . . . . . 1 . . . . . . . . 1 1 . . 1 . . Level Access Points 3 | . . . . . . . . . 1 . . . . . . 1 1 . . . Branch Access Points 6 | . . 1 1 1 . . . 1 1 . . . . . . . . 1 . . Machine Index 1 | . . . . . . . . . 1 . . . . . . . . . . . Fabricator Index 1 | . . . . . . . . . 1 . . . . . . . . . . . Alert Level 1 | . . . . . . . . . . . . . . . . . . . 1 . Recall Investigation 5 | . . . . . . . . 4 . . 1 . . . . . . . . . Recall Extermination 1 | . . . . . . . . 1 . . . . . . . . . . . . Registered Components 4 | . . . . 1 . . . 1 . . 1 . . . . . . . 1 . Registered Prototypes 1 | . . . . . . . . . . . 1 . . . . . . . . . Zone Layout 1 | . 1 . . . . . . . . . . . . . . . . . . . Fabricator Hacks 2 | . . . . . . . . 2 . . . . . . . . . . . . Load Schematic 1 | . . . . . . . . 1 . . . . . . . . . . . . Build 1 | . . . . . . . . 1 . . . . . . . . . . . . Repair Station Hacks 2 | . . . . . . . . . 2 . . . . . . . . . . . Scan Component 1 | . . . . . . . . . 1 . . . . . . . . . . . Repair 1 | . . . . . . . . . 1 . . . . . . . . . . . Recycling Unit Hacks 2 | . . . . . . 2 . . . . . . . . . . . . . . Retrieve Components 2 | . . . . . . 2 . . . . . . . . . . . . . . Scanalyzer 4 | . . . . . . . . 3 . . . . . . . . 1 . . . Retrieve Study 4 | . . . . . . . . 3 . . . . . . . . 1 . . . Garrison Access Hacks 5 | . . . . 1 1 . . 2 . . 1 . . . . . . . . . Seal Access 5 | . . . . 1 1 . . 2 . . 1 . . . . . . . . . Unauthorized Hacks 9 | . . . . . . . . 6 1 . 2 . . . . . . . . . Terminals 1 | . . . . . . . . 1 . . . . . . . . . . . . Assimilate 1 | . . . . . . . . 1 . . . . . . . . . . . . Fabricators . | . . . . . . . . . . . . . . . . . . . . . Repair Stations . | . . . . . . . . . . . . . . . . . . . . . Recycling Units 8 | . . . . . . . . 5 1 . 2 . . . . . . . . . Fedlink 8 | . . . . . . . . 5 1 . 2 . . . . . . . . . Scanalyzers . | . . . . . . . . . . . . . . . . . . . . . Garrison Access . | . . . . . . . . . . . . . . . . . . . . . Data Cores Recovered 1 | . . . . . 1 . . . . . . . . . . . . . . . Used 1 | . . . . . 1 . . . . . . . . . . . . . . . Hacking Detections 33 | . 3 . 2 2 4 1 . 8 4 . 1 . . . . 2 3 . 2 1 Full Trace Events 6 | . 2 . 1 . . . . 2 . . . . . . . . 1 . . . Feedback Events 1 | . 1 . . . . . . . . . . . . . . . . . . . Corruption 1 | . 1 . . . . . . . . . . . . . . . . . . . Feedback Blocked . | . . . . . . . . . . . . . . . . . . . . . Robot Schematics Acquired . | . . . . . . . . . . . . . . . . . . . . . Robots Built . | . . . . . . . . . . . . . . . . . . . . . Authchips . | . . . . . . . . . . . . . . . . . . . . . Time . | . . . . . . . . . . . . . . . . . . . . . Total Robot Build Rating . | . . . . . . . . . . . . . . . . . . . . . Part Schematics Acquired 2 | . . . . . 1 . . . 1 . . . . . . . . . . . Parts Built 1 | . . . . . . . . 1 . . . . . . . . . . . . Authchips . | . . . . . . . . . . . . . . . . . . . . . Time 53 | . . . . . . . . 53 . . . . . . . . . . . . Total Part Build Rating 6 | . . . . . . . . 6 . . . . . . . . . . . . Part Studies Acquired 4 | . . . . . . . . 3 . . . . . . . . 1 . . . Parts Repaired 1 | . . . . . . . . . 1 . . . . . . . . . . . Time 35 | . . . . . . . . . 35 . . . . . . . . . . . Parts Recycled . | . . . . . . . . . . . . . . . . . . . . . Recycled Matter . | . . . . . . . . . . . . . . . . . . . . . Retrieved Matter . | . . . . . . . . . . . . . . . . . . . . . Retrieved Components 2 | . . . . . . 2 . . . . . . . . . . . . . . Parts Scanalyzed . | . . . . . . . . . . . . . . . . . . . . . Part Schematics Acquired . | . . . . . . . . . . . . . . . . . . . . . Parts Damaged . | . . . . . . . . . . . . . . . . . . . . . Bothacking | -11 -10 -9 -8 -7 -7 -7 -7 -5 -4 -4 -4 -4 -4 -4 -3 -3 -3 -2 -2 -2 ------------ Run | Yrd Mat Mat Mat Fac Sto Rec Scr Fac Fac Was Fac Upp Upp War Pro Res Tes Res Qua Frg Used RIF Installer . | . . . . . . . . . . . . . . . . . . . . . Robots Hacked . | . . . . . . . . . . . . . . . . . . . . . Non-combat . | . . . . . . . . . . . . . . . . . . . . . Combat . | . . . . . . . . . . . . . . . . . . . . . Robot Hacks Applied . | . . . . . . . . . . . . . . . . . . . . . Relay Couplers Released 2 | . . . . . . . . . 2 . . . . . . . . . . . Machine Destruction 2 | . . . . . . . . . 2 . . . . . . . . . . . Fabnet Peak Effective % . | . . . . . . . . . . . . . . . . . . . . . Robots Rewired 5 | . . . . . . . . . . . . . . 5 . . . . . . Allies Hacked . | . . . . . . . . . . . . . . . . . . . . . Hacks Repelled . | . . . . . . . . . . . . . . . . . . . . . Allies | -11 -10 -9 -8 -7 -7 -7 -7 -5 -4 -4 -4 -4 -4 -4 -3 -3 -3 -2 -2 -2 -------- Run | Yrd Mat Mat Mat Fac Sto Rec Scr Fac Fac Was Fac Upp Upp War Pro Res Tes Res Qua Frg Total Allies 6 | . . . . . . . . 1 . . . . . 5 . . . . . . Largest Group 5 | . . . . . . . . 1 . . . . . 5 . . . . . . Highest-Rated Group 275 | . . . . . . . . 10 . . . . . 275 . . . . . . Highest-Rated Ally 64 | . . . . . . . . 10 . . . . . 64 . . . . . . Initial UFD Resources 83 | . . . . . . . . 38 60 70 70 76 76 76 79 79 79 83 83 83 Total Orders . | . . . . . . . . . . . . . . . . . . . . . Ally Attacks 6 | . . . . . . . . . . . . . . 6 . . . . . . Total Damage 194 | . . . . . . . . . . . . . . 194 . . . . . . Kills . | . . . . . . . . . . . . . . . . . . . . . Allies Corrupted . | . . . . . . . . . . . . . . . . . . . . . Allies Melted . | . . . . . . . . . . . . . . . . . . . . . Intel | -11 -10 -9 -8 -7 -7 -7 -7 -5 -4 -4 -4 -4 -4 -4 -3 -3 -3 -2 -2 -2 ------- Run | Yrd Mat Mat Mat Fac Sto Rec Scr Fac Fac Was Fac Upp Upp War Pro Res Tes Res Qua Frg Active Infowar (turns) 6063 | 53 807 623 758 . 198 100 316 696 238 29 320 91 122 512 121 191 180 255 108 345 Optics 4588 | . . 623 758 . . . . 695 238 29 320 91 122 512 121 191 180 255 108 345 Sensors 989 | . . . . . 198 100 316 375 . . . . . . . . . . . . Terrain 47 | . . . . . . . . . . . . . . . . . . 47 . . Structural 50 | . . . . . . . . . . . . . . . . . . 50 . . Seismic 860 | 53 807 . . . . . . . . . . . . . . . . . . . Cloaking 144 | . . . . . . . . . . . . . . 144 . . . . . . Robot Analysis Total 6 | . . . . . . . 6 . . . . . . . . . . . . . Derelict Logs Recovered 1 | . . . . . . . . . . . . . 1 . . . . . . . Drone Launches . | . . . . . . . . . . . . . . . . . . . . . Drone Recoveries . | . . . . . . . . . . . . . . . . . . . . . Exploration | -11 -10 -9 -8 -7 -7 -7 -7 -5 -4 -4 -4 -4 -4 -4 -3 -3 -3 -2 -2 -2 ------------- Run | Yrd Mat Mat Mat Fac Sto Rec Scr Fac Fac Was Fac Upp Upp War Pro Res Tes Res Qua Frg Turns Passed 7701 | 104 1165 663 826 1101 218 100 316 696 238 29 320 91 122 512 121 191 180 255 108 345 Spaces Moved 9734 | 55 534 274 313 448 354 323 1002 1626 355 100 581 268 357 1265 377 375 210 340 285 292 Core 11 | 5 . 1 . 1 . . . . . . . . . 4 . . . . . . Treads 1770 | 50 534 273 313 402 . . . 4 . . 14 . . . . . 2 18 . 160 Legs 5 | . . . . 5 . . . . . . . . . . . . . . . . Wheels 57 | . . . . . . . . 17 4 . . . . . . . . 36 . . Hover 24 | . . . . . . . . . . . . . . . . 4 20 . . . Flight 7867 | . . . . 40 354 323 1002 1605 351 100 567 268 357 1261 377 371 188 286 285 132 Fastest Speed 20 | 50 160 160 160 111 20 28 28 20 24 24 24 34 34 24 32 26 45 28 30 30 Average Speed 57 | 150 160 183 182 163 27 28 28 30 36 24 36 34 34 31 32 31 47 48 32 101 Slowest Speed 620 | 160 160 300 240 600 31 28 28 170 109 24 145 34 34 105 32 60 145 620 35 160 Overloaded Moves 108 | . . . . . 46 . . 45 . . . . . . . 17 . . . . Propulsion Burnouts . | . . . . . . . . . . . . . . . . . . . . . Robots Hopped 74 | . . . . . 5 . . 12 . . 5 . 1 7 1 6 6 21 8 2 Potential Cave-ins . | . . . . . . . . . . . . . . . . . . . . . Cave-ins Triggered . | . . . . . . . . . . . . . . . . . . . . . Exploration Rate (%) 42 | 4 87 30 18 14 58 65 67 48 12 77 24 43 66 95 57 16 37 18 41 14 Regions Visited 20 Branch Regions 10 Pre-discovered Areas 2 | . . . . . . . . 1 . . . . 1 . . . . . . . Known Exits Taken 11 | . . . . 1 1 1 1 1 . . 1 . . . 1 1 1 1 1 . Unknown Exits Taken 7 | 1 1 1 1 . . . . . . . . 1 1 1 . . . . . . Scrap Searched 5 | . . . . . . . 5 . . . . . . . . . . . . . Spaces Dug 23 | . . . . 2 . 2 . 16 3 . . . . . . . . . . . Terrain Destroyed 122 | . . 19 . 59 . 2 . 16 3 . 4 . . . . . . 12 . 7 Melee 23 | . . . . 2 . 2 . 16 3 . . . . . . . . . . . Projectile 14 | . . . . . . . . . . . 4 . . . . . . 3 . 7 AOE 85 | . . 19 . 57 . . . . . . . . . . . . . 9 . . Terrain Rammed 1 | . . . . . . . . . . . 1 . . . . . . . . . Walls Destroyed 1 | . . . . . . . . . . . 1 . . . . . . . . . Machines Disabled . | . . . . . . . . . . . . . . . . . . . . . Actions | -11 -10 -9 -8 -7 -7 -7 -7 -5 -4 -4 -4 -4 -4 -4 -3 -3 -3 -2 -2 -2 --------- Run | Yrd Mat Mat Mat Fac Sto Rec Scr Fac Fac Was Fac Upp Upp War Pro Res Tes Res Qua Frg Total 11102 | 68 703 371 443 688 434 328 1040 1751 441 105 674 267 355 1360 375 424 284 376 292 323 Wait 567 | . 71 22 18 99 28 . 28 37 54 . 57 . . 44 . 36 65 6 . 2 Move 9576 | 55 533 273 312 447 343 322 1001 1601 355 99 570 267 354 1252 374 362 197 301 270 288 Hop 66 | . . . . . 5 . . 12 . . 5 . 1 5 1 6 6 17 6 2 Pick Up 95 | 1 12 10 16 10 5 1 4 15 5 2 2 . . 5 . 1 1 . 1 4 Fast Attach 99 | 7 . 6 3 14 3 1 . 6 5 1 4 . . 14 . 9 5 15 . 6 Attach 37 | . 1 . 4 5 4 . . 9 1 . 6 . . 2 . . 2 2 . 1 Detach 21 | . . . . 1 1 1 . 3 . . 1 . . 4 . . 2 7 . 1 Swap 63 | . 5 10 10 16 10 1 2 8 . . 1 . . . . . . . . . Drop 130 | . 5 14 12 18 9 . 5 19 5 3 4 . . 14 . 2 5 5 2 8 Fire 277 | 1 72 36 61 52 15 . . . . . 5 . . . . . 1 23 . 11 Melee 98 | . . . . 18 11 2 . 41 15 . 3 . . . . 8 . . . . Ram 2 | . . . . . . . . . 1 . 1 . . . . . . . . . Kick . | . . . . . . . . . . . . . . . . . . . . . Crush 23 | 4 4 . 7 8 . . . . . . . . . . . . . . . . Escape Stasis 28 | . . . . . . . . . . . 15 . . . . . . . 13 . Rewire 12 | . . . . . . . . . . . . . . 12 . . . . . . Trap . | . . . . . . . . . . . . . . . . . . . . . Miscellaneous 8 | . . . . . . . . . . . . . . 8 . . . . . . Route ------- -11/Scrapyard -10/Materials (discovered 4 exits: *Mat x3 / [*Min]) -9/Materials (discovered 3 exits: *Mat / *Min x2) -8/Materials -7/Factory (discovered 3 exits: *Sto / Low x2) -7/Storage -7/Recycling -7/Scraptown -5/Factory (discovered 4 exits: *Fac x2 / *Upp x2) -4/Factory (discovered 7 exits: Res x4 / *Upp x2 / Arm) -4/Waste -4/Factory (discovered 2 exits: *Upp x2) -4/Upper Caves -4/Upper Caves -4/Warlord -3/Proximity Caves -3/Research (discovered 5 exits: Res x3 / *Tes x2) -3/Testing -2/Research (discovered 3 exits: [*Acc] / *Qua x2) -2/Quarantine (discovered 2 exits: *Sec / *Frg) -2/Protoforge History --------- Turn | Location | Event 21 | -11/Scrapyard | Discovered new exit (range 16) 105 | -11/Scrapyard | Entered Materials 300 | -10/Materials | Build established: Mutant 373 | -10/Materials | Discovered new exit (range 12) 586 | -10/Materials | Discovered new exit (range 4) 886 | -10/Materials | Discovered new exit (range 16) 1118 | -10/Materials | Discovered new exit (range 8) 1270 | -10/Materials | Entered another Materials area 1270 | -9/Materials | Evolved 2 slots: Utility x2 1355 | -9/Materials | Discovered new exit (range 8) 1651 | -9/Materials | Identified exit to Mines 1838 | -9/Materials | Build established: Scavenger-Mutant 1924 | -9/Materials | Discovered new exit (range 5) 1933 | -9/Materials | Entered another Materials area 1933 | -8/Materials | Evolved 2 slots: Propulsion x2 2477 | -8/Materials | Discovered new exit (range 16) 2530 | -8/Materials | Lost 3 parts (2n1u) 2759 | -8/Materials | Entered Factory 2759 | -7/Factory | Evolved 2 slots: Utility x2 3017 | -7/Factory | Identified exit to Storage 3017 | -7/Factory | Identified exit to Lower Caves 3272 | -7/Factory | Destroyed 7 combat bots 3333 | -7/Factory | Build established: Hacker-Mutant 3612 | -7/Factory | Lost 3 parts (2n1u) 3813 | -7/Factory | Lost 7 parts (1p4n1u1w) 3860 | -7/Factory | Entered Storage 4077 | -7/Storage | Used back door to open Recycling access 4077 | -7/Storage | Discovered new exit (range 5) 4077 | -7/Storage | Identified exit to Recycling 4078 | -7/Storage | Entered Recycling 4101 | -7/Recycling | Lost 3 parts (1p2n) 4165 | -7/Recycling | Build established: Hacker-Sprinter 4171 | -7/Recycling | Scanned before Scraplab entrance 4175 | -7/Recycling | Entered Scraplab 4177 | -7/Recycling | Discovered new exit (range 3) 4178 | -7/Recycling | Identified exit to Scraptown 4178 | -7/Recycling | Entered Scraptown 4178 | -7/Scraptown | System corruption cleaned by C-Scrubber 4224 | -7/Scraptown | Visited UFD Registry 4224 | -7/Scraptown | Registered with UFD as "Cryomech" 4228 | -7/Scraptown | Visited Fellowship of the Rings 4234 | -7/Scraptown | Visited IN-MT5's Study 4250 | -7/Scraptown | Visited Assassins FH 4259 | -7/Scraptown | Visited Spacefarers 4319 | -7/Scraptown | Visited Comm Corps 4331 | -7/Scraptown | Visited Red Mages 4335 | -7/Scraptown | Visited Shadow of the Wyrm 4358 | -7/Scraptown | Visited Analyses Database 4364 | -7/Scraptown | Visited Chapter 10 4368 | -7/Scraptown | Visited Junk Repository 4376 | -7/Scraptown | Visited LU-1G1's Boring Crew 4380 | -7/Scraptown | Visited DA-N13 Charitable Foundation 4381 | -7/Scraptown | Found DCF Scrap (31 items) 4394 | -7/Scraptown | Visited Scrapoid Research Area 4402 | -7/Scraptown | Visited Derelict Rescue Squad 4414 | -7/Scraptown | Visited Infowarlord's Domain 4417 | -7/Scraptown | Found Spectral Analyzer 4445 | -7/Scraptown | Met Optimus 4445 | -7/Scraptown | Accepted into 0bPrime 4493 | -7/Scraptown | Discovered new exit (range 5) 4494 | -7/Scraptown | Identified exit to Factory 4494 | -7/Scraptown | Entered Factory 4494 | -5/Factory | Evolved 4 slots: Power x1, Propulsion x2, Utility x1 4518 | -5/Factory | Discovered new exit (range 22) 4539 | -5/Factory | Loaded intel: 8 recycling unit locations 4555 | -5/Factory | Identified exit to Upper Caves 4565 | -5/Factory | Learned location of Protoforge (-2) 4664 | -5/Factory | Allied Derelicts emerged from ambush trap array 4753 | -5/Factory | Discovered new exit (range 4) 4780 | -5/Factory | Build established: Hacker-Scout 5040 | -5/Factory | Fabricated Adv. Hacking Suite? 5065 | -5/Factory | Central database locked down 5182 | -5/Factory | Identified exit to Factory 5190 | -5/Factory | Entered another Factory area 5190 | -4/Factory | Evolved 2 slots: Propulsion x1, Utility x1 5197 | -4/Factory | Identified exit to Upper Caves 5197 | -4/Factory | Identified exit to Armory 5197 | -4/Factory | Identified exit to Research 5236 | -4/Factory | Build established: Hacker-Mutant 5286 | -4/Factory | Loaded intel: 8 recycling unit locations 5339 | -4/Factory | Repaired Cld. VTOL Module 5377 | -4/Factory | Spotted B-86 Titan 5398 | -4/Factory | Found Prototype Device 5428 | -4/Factory | Sucked down chute 5428 | -4/Factory | Entered Waste 5441 | -4/Waste | Spotted C-40 Crusher 5446 | -4/Waste | Spotted C-40 Crusher 5448 | -4/Waste | Spotted C-40 Crusher 5451 | -4/Waste | Spotted C-40 Crusher 5452 | -4/Waste | Discovered new exit (range 24) 5457 | -4/Waste | Identified exit to Factory 5457 | -4/Waste | Entered Factory 5539 | -4/Factory | Noticed a derelict Sapper rigging charges 5549 | -4/Factory | Loaded intel: 8 recycling unit locations 5550 | -4/Factory | Spotted B-86 Titan 5651 | -4/Factory | Discovered exit to Upper Caves (range 23) 5695 | -4/Factory | Found Prototype Hackware 5695 | -4/Factory | Identified Exp. Hacking Suite 5714 | -4/Factory | Lost 9 parts (5n1u3w) 5768 | -4/Factory | Discovered exit to Upper Caves (range 24) 5777 | -4/Factory | Entered Upper Caves 5777 | -4/Upper Caves | Spotted B-86 Titan 5817 | -4/Upper Caves | Encountered a Warlord checkpoint 5862 | -4/Upper Caves | Attracted the attention of an 0b10 checkpoint 5863 | -4/Upper Caves | Discovered new exit (range 18) 5868 | -4/Upper Caves | Entered another Upper Caves area 5912 | -4/Upper Caves | Learned location of Armory (-4) 5969 | -4/Upper Caves | Build established: Wizard-Mutant 5987 | -4/Upper Caves | Discovered new exit (range 9) 5990 | -4/Upper Caves | Entered Warlord 6002 | -4/Warlord | System corruption cleaned by Quarantine Array 6043 | -4/Warlord | Rebuked by Warlord 6068 | -4/Warlord | Warlord's base attacked by MAIN.C 6081 | -4/Warlord | Found Prototype Energy Gun 6081 | -4/Warlord | Identified Vortex Shotgun 6084 | -4/Warlord | Found Vortex Shotgun 6175 | -4/Warlord | Learned Testing stockpile data 6175 | -4/Warlord | Learned 4 Research zone layouts 6175 | -4/Warlord | Learned 4 Testing zone layouts 6175 | -4/Warlord | Learned 4 Quarantine zone layouts 6176 | -4/Warlord | Learned Factory recycling unit intel 6176 | -4/Warlord | Learned Research fabricator intel 6289 | -4/Warlord | Lost 4 allies 6312 | -4/Warlord | Found Prototype Reactor 6312 | -4/Warlord | Identified Vortex Chain Reactor 6318 | -4/Warlord | Found Prototype Processor 6318 | -4/Warlord | Identified Exp. Targeting Computer 6321 | -4/Warlord | Found Prototype Processor 6321 | -4/Warlord | Identified Exp. Core Analyzer 6418 | -4/Warlord | Warlord forces counterattacked 6433 | -4/Warlord | Found Corrupted Prototype Ballistic Cannon 6442 | -4/Warlord | Spotted Executioner 6457 | -4/Warlord | Identified Hvy. Autocannon 6458 | -4/Warlord | System corruption reached 10% 6471 | -4/Warlord | Spotted Striker 6490 | -4/Warlord | Discovered new exit (range 14) 6499 | -4/Warlord | Spotted Executioner 6502 | -4/Warlord | Entered Proximity Caves 6507 | -3/Proximity Caves | Spotted B-86 Titan 6522 | -3/Proximity Caves | Lost 11 allies 6527 | -3/Proximity Caves | Core integrity fell below 50% 6557 | -3/Proximity Caves | Lost 4 parts (3n1u) 6607 | -3/Proximity Caves | Snuck into a huge 0b10 base via the rear entrance 6621 | -3/Proximity Caves | Discovered exit to Research (range 7) 6623 | -3/Proximity Caves | Entered Research 6623 | -3/Research | Evolved 2 slots: Utility x1, Weapon x1 6624 | -3/Research | Identified exit to Testing 6625 | -3/Research | Identified exit to Research 6626 | -3/Research | Loaded intel: 4 fabricator locations 6648 | -3/Research | Spotted B-86 Titan 6683 | -3/Research | Lost 3 parts (1p2u) 6784 | -3/Research | Lost 5 parts (1p2n1u1w) 6804 | -3/Research | Discovered exit to Testing (range 5) 6814 | -3/Research | Entered Testing 6993 | -3/Testing | Core integrity fell below 50% 6994 | -3/Testing | Entered Research 6994 | -2/Research | Evolved 2 slots: Utility x1, Weapon x1 7106 | -2/Research | Lost 8 parts (1p3n1u3w) 7112 | -2/Research | Build established: Hacker-Mutant 7198 | -2/Research | Core integrity fell below 50% 7211 | -2/Research | Identified exit to Quarantine 7232 | -2/Research | Discovered new exit (range 12) 7249 | -2/Research | Entered Quarantine 7250 | -2/Quarantine | Identified exit to Section 7 7250 | -2/Quarantine | Identified exit to Protoforge 7275 | -2/Quarantine | Lost 3 parts (3n) 7332 | -2/Quarantine | Spotted Fortress 7350 | -2/Quarantine | Lost 3 parts (1n2u) 7357 | -2/Quarantine | Entered Protoforge 7363 | -2/Protoforge | Superfortress began startup sequence 7469 | -2/Protoforge | Spotted Hotshot 7470 | -2/Protoforge | Spotted Hotshot 7614 | -2/Protoforge | Core integrity fell below 20% 7632 | -2/Protoforge | Spotted Hotshot 7658 | -2/Protoforge | Spotted Hotshot 7698 | -2/Protoforge | Spotted AP7-3 7699 | -2/Protoforge | Spotted AP7-3 7702 | -2/Protoforge | Destroyed by AP7-3 with Heavy Quantum Rifle Last Messages --------------- 07654_ Penetrated by Slug. 07654_ Slug penetrates Protoware Simulator. 07654_ Protoware Simulator disabled. 07657_ Penetrated by Slug. 07657_ Slug penetrates Protoware Simulator. 07657_ ALERT: Hostiles spotted, dispatching reinforcements to Terminal F006. 07659_ Penetrated by Slug. 07659_ Slug penetrates Wall. 07665_ Dropped Enh. Nova Cannon. 07666_ Dropped Com. Mass Driver. 07666_ Dropped Lgt. Quantum Reactor. 07667_ Dropped Backup Power VII. 07667_ Penetrated by Slug. 07667_ Dropped Adv. Heavy Siege Treads. 07668_ Acquired Lgt. Quantum Reactor. 07672_ System corrupted: Matter fused (-7). 07676_ Slug penetrates Wall. 07702_ Penetrated by Slug. 07702_ Hacking Suite destroyed. Map ----- +----------------------------------------------------+ | ?????????????????????????????????????????????????? | | ?????????????????????????????????????????????????? | | ?????????????????????????????????????????????????? | | ?????????????????????????????????????????????????? | | ?????????????????????????????????????????????????? | | ?????????????????????????????????????????????????? | | ?????????????????????????????????????????????????? | | ?????????????????????????????????????????????????? | | ?????????????????????????????????????????????????? | | ?????????????????????????????????????????????????? | | ?????????????????????????????????????????????????? | | ?????????????????????????????????????????????????? | | ?????????????????????????????????????????????????? | | ?????????????????????????????????????????????????? | | ?????????????????????????????????????????????????? | | ?????????????????###?????????????????????????????? | | #???????????????? ?????????????????????????????? | | ????????????????# #?????????????????????????????? | | ????????????????# #?????????????????????????????? | | ????????????????# #?????????????????????????????? | | ????????????????# #?????????????????????????????? | | #???????????##### #??????????????????????" " ?? | | #???????????#T"## #????###?????????? " " ?? | | #?????????### "## ######;### ### "" ?? | | #?????????# 7 w "" "" ""? | | #?????????# u @ k/ "" "" "? | | #?????????# 7 / "" """ ? | | #?????????# ############## ### " " ?? | | #???????? # ###########??????????? " "?? | | #??????? # # #???????????????? """ "?? | | #######+### + #???????????????????????? | | # " " " " #???????????????????????? | | # " " " " #???????????????????????? | | #?" " " " #???????????????????????? | | #######+#######? #???????????????????????? | | #????????????????"" """ #???????????????????????? | | #????????????????""S""" #???????????????????????? | | #????????????############???????????????????????? | | #????????????? "" ?????????????????????????? | | #?????????????""S """ ??????????????????????????? | | #?????????????"" ???????????????????????????? | | #?????????????? ""????????????????????????????? | | #?????????????? ?????????????????????????????? | | #?????????????##/##?????????????????????????????? | | ############### #?????????????????????????????? | | # + #?#####???????????????????????? | | # """"######## #?# #???????????????????????? | | # """"#??????# #?# #???????????????????????? | | # """"#??????# ### #????????????????????????? | | / """"#??????# ##???###?????????????????? | +----------------------------------------------------+ Best States ------------- Heat Dissipation 84 Energy Generation 45 Energy Capacity 440 Matter Stores 300 Matter Capacity 300 Sight Range 24 Robot Scan Range 16 Terrain Scan Range 14 Terrain Scan Density 10 Cloak Strength 4 Power Amplification 30 Armor Coverage 525 Evasion (%) 65 Recoil Reduction 4 Offensive Hacking 60 Defensive Hacking 14 Item Schematics ----------------- Adv. Hacking Suite | -7/Storage | Hacked Nuclear Pulse Array | -4/Factory | Hacked Robot Schematics ------------------ None Fabricated ------------ Adv. Hacking Suite | x1 | -5/Factory Repaired ---------- Cld. VTOL Module | 15% | -4/Factory Studied --------- Xenon Bombardment Thruster | -5/Factory | Hacked Power Sword | -5/Factory | Hacked Mic. Nuclear Core | -5/Factory | Hacked Impulse Thruster Array | -3/Testing | Hacked Alien Tech Used ----------------- None Achievements -------------- Charge!!! Challenges ------------ None Game ------ Seed HypercooledFlyingTrap Manual? 0 Play Time 01:46:30 Cumulative 195.8 hours Start 2026.08.27 @ 12:47:55 End 2026.08.27 @ 14:32:52 Sessions 1 Manual Loads 0 Difficulty Rogue Special Mode None Game No. 307 Rogue 307 Adventurer 0 Explorer 0 Win Type - Total 1 Types 1/0/0/0/0/0/0/0/0/0 Lore% 67 Gallery% 61 Achievement% 46 Wizard Run 0 Options --------- Layout 1 ASCII 0 Keyboard 1 Movement Arrows Keybinds 0 Fullscreen 1 Font 24/Smallcaps Map View 50x35 Zoom Use 0% Tactical HUD 1 Map Filters NONE Filters NONE Steam 1 RUN: d86033a7-f6d0-44e0-a483-ec8e2ad49413